[Event "Vastgota Open 2022"]
[Site "Skara stadshotell, Jarnvagsgatan 5, Skara, Sweden"]
[Date "2022.10.30"]
[Round "7.9"]
[White "Cederqvist, Niclas"]
[Black "Bellon Lopez, Juan Manuel"]
[Result "0-1"]
[TimeControl "30 minutes + 10 seconds per move from move one."]
[BlackTitle "GM"]
[WhiteFideId "1702076"]
[BlackFideId "2200031"]
[WhiteElo "1883"]
[BlackElo "2347"]

1. d4 {[%clk 00:30:16]} {[%emt 00:00:03]} Nf6 {[%clk 00:30:20]} 2. Nf3 {[%clk
00:30:18]} {[%emt 00:00:08]} c5 {[%clk 00:30:28]} {[%emt 00:00:01]} 3. e3
{[%clk 00:30:00]} {[%emt 00:00:28]} e6 {[%clk 00:30:37]} {[%emt 00:00:02]} 4.
c4 {[%clk 00:30:05]} {[%emt 00:00:05]} a6 {[%clk 00:30:36]} {[%emt 00:00:11]} 5.
Nc3 {[%clk 00:29:57]} {[%emt 00:00:18]} Qc7 {[%clk 00:30:40]} {[%emt 00:00:07]}
6. Be2 {[%clk 00:29:56]} {[%emt 00:00:11]} d6 {[%clk 00:30:45]} {[%emt
00:00:05]} 7. O-O {[%clk 00:29:55]} {[%emt 00:00:10]} Nbd7 {[%clk 00:30:53]}
{[%emt 00:00:02]} 8. b3 {[%clk 00:29:36]} {[%emt 00:00:30]} Be7 {[%clk
00:30:11]} {[%emt 00:00:51]} 9. Bb2 {[%clk 00:29:41]} {[%emt 00:00:05]} O-O
{[%clk 00:30:19]} {[%emt 00:00:03]} 10. Qc2 {[%clk 00:29:35]} {[%emt 00:00:15]}
b6 {[%clk 00:29:55]} {[%emt 00:00:34]} 11. a3 {[%clk 00:28:14]} {[%emt
00:01:31]} Bb7 {[%clk 00:29:45]} {[%emt 00:00:19]} 12. b4 {[%clk 00:27:44]}
{[%emt 00:00:41]} cxd4 {[%clk 00:29:42]} {[%emt 00:00:11]} 13. exd4 {[%clk
00:27:35]} {[%emt 00:00:21]} Rac8 {[%clk 00:29:37]} {[%emt 00:00:15]} 14. Nd2
{[%clk 00:27:03]} {[%emt 00:00:42]} Qb8 {[%clk 00:29:16]} {[%emt 00:00:31]} 15.
f4 {[%clk 00:26:49]} {[%emt 00:00:24]} Rfe8 {[%clk 00:28:17]} {[%emt 00:01:10]}
16. Rae1 {[%clk 00:26:12]} {[%emt 00:00:47]} g6 {[%clk 00:28:15]} {[%emt
00:00:12]} 17. Bf3 {[%clk 00:26:06]} {[%emt 00:00:16]} d5 {[%clk 00:27:04]}
{[%emt 00:01:21]} 18. cxd5 {[%clk 00:22:55]} {[%emt 00:03:21]} Nxd5 {[%clk
00:26:50]} {[%emt 00:00:23]} 19. g3 {[%clk 00:22:38]} {[%emt 00:00:28]} Qc7
{[%clk 00:24:39]} {[%emt 00:02:21]} 20. Ndb1 {[%clk 00:21:43]} {[%emt
00:01:06]} a5 {[%clk 00:19:27]} {[%emt 00:05:22]} 21. bxa5 {[%clk 00:19:03]}
{[%emt 00:02:50]} bxa5 {[%clk 00:19:34]} {[%emt 00:00:02]} 22. Qd2 {[%clk
00:18:53]} {[%emt 00:00:20]} N7b6 {[%clk 00:18:33]} {[%emt 00:01:10]} 23. Nxd5
{[%clk 00:17:57]} {[%emt 00:01:07]} Nxd5 {[%clk 00:16:51]} {[%emt 00:01:53]} 24.
Rc1 {[%clk 00:17:23]} {[%emt 00:00:43]} Qb6 {[%clk 00:16:52]} {[%emt 00:00:09]}
25. Nc3 {[%clk 00:16:46]} {[%emt 00:00:48]} Qb3 {[%clk 00:14:48]} {[%emt
00:02:12]} 26. Bd1 {[%clk 00:15:14]} {[%emt 00:01:43]} Qb6 {[%clk 00:14:22]}
{[%emt 00:00:36]} 27. Bf3 {[%clk 00:14:53]} {[%emt 00:00:31]} Nxc3 {[%clk
00:13:44]} {[%emt 00:00:48]} 28. Rxc3 {[%clk 00:13:48]} {[%emt 00:01:15]} Rxc3
{[%clk 00:12:56]} {[%emt 00:00:58]} 29. Qxc3 {[%clk 00:12:21]} {[%emt
00:01:38]} Rc8 {[%clk 00:12:07]} {[%emt 00:00:57]} 30. Qd2 {[%clk 00:12:01]}
{[%emt 00:00:31]} Qb3 {[%clk 00:10:23]} {[%emt 00:01:54]} 31. Bd1 {[%clk
00:10:03]} {[%emt 00:02:09]} Qa2 {[%clk 00:09:12]} {[%emt 00:01:19]} 32. Bc1
{[%clk 00:07:21]} {[%emt 00:02:53]} Qxd2 {[%clk 00:09:03]} {[%emt 00:00:19]} 33.
Bxd2 {[%clk 00:07:28]} {[%emt 00:00:03]} Bf6 {[%clk 00:09:11]} {[%emt
00:00:02]} 34. Bf3 {[%clk 00:06:32]} {[%emt 00:01:06]} Bxd4+ {[%clk 00:09:09]}
{[%emt 00:00:13]} 35. Kg2 {[%clk 00:06:25]} {[%emt 00:00:17]} Bxf3+ {[%clk
00:06:53]} {[%emt 00:02:27]} 36. Kxf3 {[%clk 00:06:19]} {[%emt 00:00:15]} a4
{[%clk 00:06:40]} {[%emt 00:00:22]} 37. Bb4 {[%clk 00:05:58]} {[%emt 00:00:31]}
Rc4 {[%clk 00:06:21]} {[%emt 00:00:29]} 38. Rd1 {[%clk 00:05:38]} {[%emt
00:00:31]} h5 {[%clk 00:05:01]} {[%emt 00:01:31]} 39. h3 {[%clk 00:05:17]}
{[%emt 00:00:30]} Kh7 {[%clk 00:04:59]} {[%emt 00:00:12]} 40. Rd3 {[%clk
00:04:59]} {[%emt 00:00:28]} Bc5 {[%clk 00:04:35]} {[%emt 00:00:35]} 41. Bxc5
{[%clk 00:04:33]} {[%emt 00:00:36]} Rxc5 {[%clk 00:04:44]} {[%emt 00:00:01]} 42.
Ke4 {[%clk 00:04:22]} {[%emt 00:00:20]} Rc4+ {[%clk 00:04:06]} {[%emt
00:00:48]} 43. Ke5 {[%clk 00:04:18]} {[%emt 00:00:14]} Kg7 {[%clk 00:04:06]}
{[%emt 00:00:10]} 44. g4 {[%clk 00:04:04]} {[%emt 00:00:24]} hxg4 {[%clk
00:03:55]} {[%emt 00:00:21]} 45. hxg4 {[%clk 00:04:13]} f6+ {[%clk 00:03:31]}
{[%emt 00:00:34]} 46. Kxe6 {[%clk 00:04:14]} {[%emt 00:00:09]} Rxf4 {[%clk
00:03:36]} {[%emt 00:00:04]} 47. Rg3 {[%clk 00:04:07]} {[%emt 00:00:17]} Kh6
{[%clk 00:03:39]} {[%emt 00:00:07]} 48. g5 {[%clk 00:03:58]} {[%emt 00:00:19]}
fxg5 {[%clk 00:03:46]} {[%emt 00:00:03]} 49. Rh3 {[%clk 00:04:02]} {[%emt
00:00:06]} Rh4 {[%clk 00:03:40]} {[%emt 00:00:15]} 50. Rg3 {[%clk 00:03:24]}
{[%emt 00:00:49]} Kh5 {[%clk 00:03:46]} {[%emt 00:00:04]} 51. Rc3 {[%clk
00:03:18]} {[%emt 00:00:16]} Re4+ {[%clk 00:03:23]} {[%emt 00:00:32]} 52. Kf6
{[%clk 00:03:23]} {[%emt 00:00:05]} Rf4+ {[%clk 00:03:17]} {[%emt 00:00:15]} 53.
Kg7 {[%clk 00:03:32]} g4 {[%clk 00:03:09]} {[%emt 00:00:20]} 54. Rc6 {[%clk
00:03:35]} {[%emt 00:00:07]} g3 {[%clk 00:03:11]} {[%emt 00:00:08]} 55. Rxg6
{[%emt 00:00:09]} 0-1

[Event "Vastgota Open 2022"]
[Site "Skara stadshotell, Jarnvagsgatan 5, Skara, Sweden"]
[Date "2022.10.30"]
[Round "7.10"]
[White "Koski, Viljo"]
[Black "Wengholm, Anders"]
[Result "0-1"]
[TimeControl "30 minutes + 10 seconds per move from move one."]
[WhiteFideId "1717553"]
[BlackFideId "1704818"]
[WhiteElo "1870"]
[BlackElo "2179"]

1. d4 {[%clk 00:30:16]} {[%emt 00:00:04]} d6 {[%clk 00:30:18]} {[%emt
00:00:01]} 2. c4 {[%clk 00:30:22]} {[%emt 00:00:04]} e5 {[%clk 00:30:26]}
{[%emt 00:00:02]} 3. Nc3 {[%clk 00:30:21]} {[%emt 00:00:12]} exd4 {[%clk
00:29:13]} {[%emt 00:01:23]} 4. Qxd4 {[%clk 00:30:23]} {[%emt 00:00:07]} Nc6
{[%clk 00:29:21]} {[%emt 00:00:02]} 5. Qd1 {[%clk 00:30:22]} {[%emt 00:00:11]}
Nf6 {[%clk 00:28:47]} {[%emt 00:00:43]} 6. Nf3 {[%clk 00:29:19]} {[%emt
00:01:14]} g6 {[%clk 00:28:32]} {[%emt 00:00:26]} 7. Bg5 {[%clk 00:26:59]}
{[%emt 00:02:30]} Bg7 {[%clk 00:28:14]} {[%emt 00:00:28]} 8. Nd5 {[%clk
00:26:33]} {[%emt 00:00:36]} h6 {[%clk 00:27:52]} {[%emt 00:00:32]} 9. Nxf6+
{[%clk 00:25:54]} {[%emt 00:00:50]} Bxf6 {[%clk 00:28:00]} {[%emt 00:00:01]} 10.
Bxf6 {[%clk 00:26:02]} {[%emt 00:00:02]} Qxf6 {[%clk 00:28:09]} {[%emt
00:00:02]} 11. Qd2 {[%clk 00:26:04]} {[%emt 00:00:07]} Bg4 {[%clk 00:28:00]}
{[%emt 00:00:19]} 12. h3 {[%clk 00:25:52]} {[%emt 00:00:22]} Bxf3 {[%clk
00:27:44]} {[%emt 00:00:28]} 13. exf3 {[%clk 00:25:34]} {[%emt 00:00:26]} Qd4
{[%clk 00:25:41]} {[%emt 00:02:13]} 14. Qxd4 {[%clk 00:20:44]} {[%emt
00:05:00]} Nxd4 {[%clk 00:24:12]} {[%emt 00:01:39]} 15. Bd3 {[%clk 00:20:13]}
{[%emt 00:00:41]} O-O {[%clk 00:24:10]} {[%emt 00:00:13]} 16. O-O {[%clk
00:20:06]} {[%emt 00:00:16]} Rfe8 {[%clk 00:19:06]} {[%emt 00:05:14]} 17. Rfe1
{[%clk 00:19:55]} {[%emt 00:00:20]} Rxe1+ {[%clk 00:18:58]} {[%emt 00:00:20]}
18. Rxe1 {[%clk 00:20:02]} {[%emt 00:00:02]} Kf8 {[%clk 00:19:06]} {[%emt
00:00:02]} 19. b3 {[%clk 00:17:10]} {[%emt 00:03:02]} c5 {[%clk 00:13:30]}
{[%emt 00:05:47]} 20. f4 {[%clk 00:12:40]} {[%emt 00:04:39]} a6 {[%clk
00:13:31]} {[%emt 00:00:09]} 21. f3 {[%clk 00:12:08]} {[%emt 00:00:41]} b5
{[%clk 00:13:21]} {[%emt 00:00:22]} 22. Kf2 {[%clk 00:11:47]} {[%emt 00:00:30]}
b4 {[%clk 00:13:29]} {[%emt 00:00:02]} 23. g4 {[%clk 00:07:38]} {[%emt
00:04:19]} a5 {[%clk 00:13:36]} {[%emt 00:00:03]} 24. Be2 {[%clk 00:05:41]}
{[%emt 00:02:07]} a4 {[%clk 00:12:58]} {[%emt 00:00:49]} 25. Bd1 {[%clk
00:05:46]} {[%emt 00:00:04]} axb3 {[%clk 00:12:49]} {[%emt 00:00:20]} 26. axb3
{[%clk 00:05:41]} {[%emt 00:00:14]} Ra2+ {[%clk 00:12:04]} {[%emt 00:00:55]} 27.
Ke3 {[%clk 00:02:56]} {[%emt 00:02:55]} f5 {[%clk 00:10:30]} {[%emt 00:01:45]}
28. h4 {[%clk 00:01:57]} {[%emt 00:01:09]} h5 {[%clk 00:06:52]} {[%emt
00:03:48]} 29. Rg1 {[%clk 00:00:50]} {[%emt 00:01:16]} Rh2 {[%clk 00:06:51]}
{[%emt 00:00:11]} 30. gxh5 {[%clk 00:00:21]} {[%emt 00:00:39]} gxh5 {[%clk
00:06:59]} 31. Rg6 {[%clk 00:00:30]} {[%emt 00:00:03]} Ke7 {[%clk 00:07:05]} 32.
Rg7+ {[%clk 00:00:38]} {[%emt 00:00:06]} Ke6 {[%clk 00:07:11]} 33. Rg6+ {[%clk
00:00:44]} {[%emt 00:00:08]} 0-1

[Event "Vastgota Open 2022"]
[Site "Skara stadshotell, Jarnvagsgatan 5, Skara, Sweden"]
[Date "2022.10.30"]
[Round "8.1"]
[White "Blomqvist, Erik"]
[Black "Eklund, Lars-Goran"]
[Result "1-0"]
[TimeControl "30 minutes + 10 seconds per move from move one."]
[WhiteTitle "GM"]
[BlackTitle "FM"]
[WhiteFideId "1709437"]
[BlackFideId "1701010"]
[WhiteElo "2490"]
[BlackElo "2176"]

1. d4 {[%clk 00:30:18]} {[%emt 00:00:01]} d5 {[%clk 00:30:15]} {[%emt
00:00:06]} 2. Bf4 {[%clk 00:30:26]} {[%emt 00:00:02]} e6 {[%clk 00:29:00]}
{[%emt 00:01:25]} 3. e3 {[%clk 00:30:33]} {[%emt 00:00:05]} Nf6 {[%clk
00:28:36]} {[%emt 00:00:33]} 4. Nf3 {[%clk 00:30:40]} {[%emt 00:00:02]} Be7
{[%clk 00:27:30]} {[%emt 00:01:17]} 5. h3 {[%clk 00:30:00]} {[%emt 00:00:50]}
c5 {[%clk 00:26:09]} {[%emt 00:01:31]} 6. Nbd2 {[%clk 00:29:47]} {[%emt
00:00:23]} O-O {[%clk 00:24:35]} {[%emt 00:01:44]} 7. c3 {[%clk 00:29:42]}
{[%emt 00:00:15]} b6 {[%clk 00:24:08]} {[%emt 00:00:37]} 8. h4 {[%clk
00:27:27]} {[%emt 00:02:25]} Ba6 {[%clk 00:22:18]} {[%emt 00:02:01]} 9. Bxa6
{[%clk 00:27:31]} {[%emt 00:00:06]} Nxa6 {[%clk 00:22:27]} 10. h5 {[%clk
00:27:07]} {[%emt 00:00:33]} b5 {[%clk 00:15:54]} {[%emt 00:06:44]} 11. Ne5
{[%clk 00:26:45]} {[%emt 00:00:32]} Rc8 {[%clk 00:14:24]} {[%emt 00:01:40]} 12.
a3 {[%clk 00:24:36]} {[%emt 00:02:19]} Nb8 {[%clk 00:11:03]} {[%emt 00:03:31]}
13. Qf3 {[%clk 00:20:24]} {[%emt 00:04:22]} Nfd7 {[%clk 00:06:43]} {[%emt
00:04:30]} 14. Qg3 {[%clk 00:19:39]} {[%emt 00:00:54]} Nxe5 {[%clk 00:06:02]}
{[%emt 00:00:51]} 15. Bxe5 {[%clk 00:19:47]} {[%emt 00:00:03]} f6 {[%clk
00:04:18]} {[%emt 00:01:54]} 16. Bxb8 {[%clk 00:15:41]} {[%emt 00:04:16]} Rxb8
{[%clk 00:04:24]} {[%emt 00:00:03]} 17. dxc5 {[%clk 00:15:49]} {[%emt
00:00:01]} Bxc5 {[%clk 00:04:25]} {[%emt 00:00:10]} 18. e4 {[%clk 00:15:32]}
{[%emt 00:00:27]} d4 {[%clk 00:01:02]} {[%emt 00:03:33]} 19. Nb3 {[%clk
00:13:17]} {[%emt 00:02:25]} Bd6 {[%clk 00:01:11]} {[%emt 00:00:02]} 20. Qh3
{[%clk 00:12:47]} {[%emt 00:00:39]} dxc3 {[%clk 00:01:03]} {[%emt 00:00:18]} 21.
Qxe6+ {[%clk 00:12:32]} {[%emt 00:00:24]} Kh8 {[%clk 00:01:09]} {[%emt
00:00:04]} 22. bxc3 {[%clk 00:10:36]} {[%emt 00:02:07]} Be5 {[%clk 00:01:01]}
{[%emt 00:00:17]} 23. O-O {[%clk 00:09:40]} {[%emt 00:01:06]} Qc8 {[%clk
00:00:47]} {[%emt 00:00:24]} 24. Qe7 {[%clk 00:07:56]} {[%emt 00:01:54]} Qxc3
{[%clk 00:00:19]} {[%emt 00:00:40]} 25. Rab1 {[%clk 00:07:46]} {[%emt
00:00:18]} Qc7 {[%clk 00:00:18]} {[%emt 00:00:15]} 26. Qb4 {[%clk 00:07:19]}
{[%emt 00:00:32]} Qd6 {[%clk 00:00:20]} {[%emt 00:00:09]} 27. Rfd1 {[%clk
00:06:59]} {[%emt 00:00:30]} Qe6 {[%clk 00:00:20]} {[%emt 00:00:10]} 28. Nc5
{[%clk 00:06:47]} {[%emt 00:00:21]} Qg4 {[%emt 00:00:16]} 29. Nd7 {[%clk
00:06:46]} Rfd8 {[%clk 00:00:19]} {[%emt 00:00:18]} 30. f3 {[%clk 00:05:11]}
{[%emt 00:01:44]} Qh4 {[%clk 00:00:19]} {[%emt 00:00:10]} 31. Nxb8 {[%clk
00:04:31]} {[%emt 00:00:50]} Rxb8 {[%clk 00:00:27]} {[%emt 00:00:02]} 32. Qxb5
{[%clk 00:02:30]} {[%emt 00:02:11]} Qh2+ {[%clk 00:00:35]} 33. Kf1 {[%clk
00:02:14]} {[%emt 00:00:26]} Qh1+ {[%clk 00:00:40]} {[%emt 00:00:06]} 34. Kf2
{[%clk 00:02:11]} {[%emt 00:00:14]} Qh4+ {[%clk 00:00:34]} {[%emt 00:00:15]} 35.
Ke2 {[%clk 00:02:19]} {[%emt 00:00:02]} h6 {[%clk 00:00:23]} {[%emt 00:00:21]}
36. Qd7 {[%clk 00:01:51]} {[%emt 00:00:37]} Rf8 {[%clk 00:00:12]} {[%emt
00:00:22]} 37. Qg4 {[%clk 00:01:25]} {[%emt 00:00:36]} 1-0

[Event "Vastgota Open 2022"]
[Site "Skara stadshotell, Jarnvagsgatan 5, Skara, Sweden"]
[Date "2022.10.30"]
[Round "8.2"]
[White "Cramling, Pia"]
[Black "Golubka, Petro"]
[Result "1/2-1/2"]
[TimeControl "30 minutes + 10 seconds per move from move one."]
[WhiteTitle "GM"]
[BlackTitle "GM"]
[WhiteFideId "1700030"]
[BlackFideId "14114224"]
[WhiteElo "2421"]
[BlackElo "2335"]

1. d4 {[%clk 00:30:06]} {[%emt 00:00:13]} d5 {[%clk 00:25:44]} {[%emt
00:04:37]} 2. Nf3 {[%clk 00:30:08]} {[%emt 00:00:07]} Nf6 {[%clk 00:25:49]}
{[%emt 00:00:05]} 3. c4 {[%clk 00:30:10]} {[%emt 00:00:08]} c6 {[%clk
00:25:56]} {[%emt 00:00:04]} 4. Qb3 {[%clk 00:29:26]} {[%emt 00:00:54]} dxc4
{[%clk 00:25:50]} {[%emt 00:00:16]} 5. Qxc4 {[%clk 00:29:34]} {[%emt 00:00:02]}
Bg4 {[%clk 00:25:53]} {[%emt 00:00:08]} 6. Nbd2 {[%clk 00:29:31]} {[%emt
00:00:12]} Nbd7 {[%clk 00:25:36]} {[%emt 00:00:27]} 7. g3 {[%clk 00:29:31]}
{[%emt 00:00:09]} e6 {[%clk 00:25:40]} {[%emt 00:00:07]} 8. Bg2 {[%clk
00:29:35]} {[%emt 00:00:05]} Be7 {[%clk 00:25:26]} {[%emt 00:00:25]} 9. O-O
{[%clk 00:29:07]} {[%emt 00:00:38]} O-O {[%clk 00:25:17]} {[%emt 00:00:17]} 10.
Qb3 {[%clk 00:29:03]} {[%emt 00:00:16]} Qb6 {[%clk 00:25:24]} {[%emt 00:00:03]}
11. Nc4 {[%clk 00:27:44]} {[%emt 00:01:28]} Qa6 {[%clk 00:25:27]} {[%emt
00:00:09]} 12. Bd2 {[%clk 00:25:31]} {[%emt 00:02:22]} Nb6 {[%clk 00:25:30]}
{[%emt 00:00:08]} 13. Rfc1 {[%clk 00:25:28]} {[%emt 00:00:12]} Nxc4 {[%clk
00:25:34]} {[%emt 00:00:07]} 14. Qxc4 {[%clk 00:25:21]} {[%emt 00:00:15]} Qxc4
{[%clk 00:25:34]} {[%emt 00:00:11]} 15. Rxc4 {[%clk 00:25:29]} {[%emt
00:00:02]} Ne4 {[%clk 00:25:14]} {[%emt 00:00:31]} 16. Bb4 {[%clk 00:22:48]}
{[%emt 00:02:50]} Bxb4 {[%clk 00:25:10]} {[%emt 00:00:14]} 17. Rxb4 {[%clk
00:22:56]} {[%emt 00:00:01]} Nd6 {[%clk 00:25:01]} {[%emt 00:00:19]} 18. Rc1
{[%clk 00:22:17]} {[%emt 00:00:49]} Rfd8 {[%clk 00:25:01]} {[%emt 00:00:11]} 19.
e3 {[%clk 00:21:46]} {[%emt 00:00:40]} Bxf3 {[%clk 00:24:58]} {[%emt 00:00:13]}
20. Bxf3 {[%clk 00:21:53]} {[%emt 00:00:02]} Kf8 {[%clk 00:24:12]} {[%emt
00:00:57]} 21. h4 {[%clk 00:21:36]} {[%emt 00:00:26]} Ke7 {[%clk 00:23:58]}
{[%emt 00:00:26]} 22. Rc5 {[%clk 00:20:56]} {[%emt 00:00:48]} f6 {[%clk
00:23:45]} {[%emt 00:00:24]} 23. Kg2 {[%clk 00:19:38]} {[%emt 00:01:27]} g6
{[%clk 00:23:13]} {[%emt 00:00:44]} 24. Bd1 {[%clk 00:18:57]} {[%emt 00:00:48]}
Rd7 {[%clk 00:22:01]} {[%emt 00:01:24]} 25. Bc2 {[%clk 00:18:40]} {[%emt
00:00:24]} Nf7 {[%clk 00:21:38]} {[%emt 00:00:36]} 26. Bb3 {[%clk 00:16:28]}
{[%emt 00:02:13]} h6 {[%clk 00:20:54]} {[%emt 00:01:02]} 27. Ra5 {[%clk
00:15:28]} {[%emt 00:01:09]} g5 {[%clk 00:19:09]} {[%emt 00:01:56]} 28. hxg5
{[%clk 00:15:11]} {[%emt 00:00:26]} hxg5 {[%clk 00:19:14]} {[%emt 00:00:06]} 29.
Bc2 {[%clk 00:13:49]} {[%emt 00:01:30]} a6 {[%clk 00:18:31]} {[%emt 00:00:55]}
30. Rb6 {[%clk 00:12:48]} {[%emt 00:01:10]} Rh8 {[%clk 00:17:15]} {[%emt
00:01:27]} 31. Rb3 {[%clk 00:09:11]} {[%emt 00:03:46]} Nd6 {[%clk 00:15:57]}
{[%emt 00:01:28]} 32. Rc5 {[%clk 00:08:42]} {[%emt 00:00:39]} g4 {[%clk
00:15:07]} {[%emt 00:01:01]} 33. Bd3 {[%clk 00:08:20]} {[%emt 00:00:30]} f5
{[%clk 00:14:53]} {[%emt 00:00:26]} 34. Rc1 {[%clk 00:08:25]} {[%emt 00:00:06]}
Kf6 {[%clk 00:14:40]} {[%emt 00:00:23]} 35. Rh1 {[%clk 00:08:30]} {[%emt
00:00:04]} Rxh1 {[%clk 00:14:45]} {[%emt 00:00:06]} 36. Kxh1 {[%clk 00:08:39]}
Nf7 {[%clk 00:13:23]} {[%emt 00:01:32]} 37. Bc4 {[%clk 00:07:33]} {[%emt
00:01:14]} Ng5 {[%clk 00:12:28]} {[%emt 00:01:05]} 38. Kg2 {[%clk 00:07:40]}
{[%emt 00:00:04]} Rh7 {[%clk 00:11:58]} {[%emt 00:00:40]} 39. Be2 {[%clk
00:07:38]} {[%emt 00:00:12]} Ne4 {[%clk 00:11:54]} {[%emt 00:00:15]} 40. Rd3
{[%clk 00:06:52]} {[%emt 00:00:55]} Nd6 {[%clk 00:10:28]} {[%emt 00:01:37]} 41.
Rd2 {[%clk 00:06:47]} {[%emt 00:00:14]} Rh8 {[%clk 00:10:08]} {[%emt 00:00:31]}
42. Rd1 {[%clk 00:06:37]} {[%emt 00:00:19]} a5 {[%clk 00:09:58]} {[%emt
00:00:21]} 43. Rc1 {[%clk 00:06:38]} {[%emt 00:00:09]} Ne4 {[%clk 00:09:39]}
{[%emt 00:00:29]} 44. Bd3 {[%clk 00:06:00]} {[%emt 00:00:48]} Nd2 {[%clk
00:09:34]} {[%emt 00:00:15]} 45. Be2 {[%clk 00:06:08]} Ne4 {[%clk 00:09:20]}
{[%emt 00:00:24]} 46. Bd3 {[%clk 00:06:12]} {[%emt 00:00:05]} Nd6 {[%clk
00:09:06]} {[%emt 00:00:26]} 47. Rc5 {[%clk 00:06:19]} {[%emt 00:00:03]} Ra8
{[%clk 00:09:12]} {[%emt 00:00:04]} 48. Kf1 {[%clk 00:05:41]} {[%emt 00:00:46]}
Ke7 {[%clk 00:09:02]} {[%emt 00:00:23]} 49. Kg2 {[%clk 00:05:24]} {[%emt
00:00:26]} Kd7 {[%clk 00:09:06]} {[%emt 00:00:06]} 50. a3 {[%clk 00:05:29]}
{[%emt 00:00:04]} b6 {[%clk 00:08:55]} {[%emt 00:00:21]} 51. Rc1 {[%clk
00:05:29]} {[%emt 00:00:10]} Re8 {[%clk 00:08:53]} {[%emt 00:00:12]} 52. Rh1
{[%clk 00:05:27]} {[%emt 00:00:12]} e5 {[%clk 00:08:48]} {[%emt 00:00:18]} 53.
Rh7+ {[%clk 00:04:58]} {[%emt 00:00:38]} Ke6 {[%clk 00:08:52]} {[%emt
00:00:05]} 54. dxe5 {[%clk 00:04:17]} {[%emt 00:00:51]} Kxe5 {[%clk 00:08:53]}
{[%emt 00:00:09]} 55. Kf1 {[%clk 00:03:47]} {[%emt 00:00:38]} a4 {[%clk
00:08:43]} {[%emt 00:00:22]} 56. Ke2 {[%clk 00:02:42]} {[%emt 00:01:15]} b5
{[%clk 00:08:28]} {[%emt 00:00:26]} 57. f4+ {[%clk 00:02:45]} {[%emt 00:00:06]}
gxf3+ {[%clk 00:07:54]} {[%emt 00:00:43]} 58. Kxf3 {[%clk 00:02:54]} {[%emt
00:00:02]} Rg8 {[%clk 00:05:27]} {[%emt 00:02:37]} 59. Re7+ {[%clk 00:02:44]}
{[%emt 00:00:19]} Kd5 {[%emt 00:00:30]} 60. Rd7 {[%emt 00:00:20]} Ke6 {[%clk
00:03:55]} {[%emt 00:00:52]} 61. Rc7 {[%clk 00:02:39]} {[%emt 00:00:14]} Kd5
{[%clk 00:03:53]} {[%emt 00:00:14]} 62. Rd7 {[%clk 00:02:47]} {[%emt 00:00:01]}
c5 {[%clk 00:03:10]} {[%emt 00:00:52]} 63. Bxb5 {[%clk 00:01:05]} {[%emt
00:01:52]} Rb8 {[%clk 00:02:21]} {[%emt 00:00:59]} 64. Bxa4 {[%clk 00:01:07]}
{[%emt 00:00:08]} Rxb2 {[%clk 00:02:27]} {[%emt 00:00:05]} 65. Rd8 {[%clk
00:00:21]} {[%emt 00:00:56]} c4 {[%clk 00:02:20]} {[%emt 00:00:17]} 66. g4
{[%clk 00:00:21]} {[%emt 00:00:10]} fxg4+ {[%clk 00:02:25]} {[%emt 00:00:05]}
67. Kxg4 {[%clk 00:00:30]} Kc5 {[%clk 00:01:52]} {[%emt 00:00:42]} 68. Rd7
{[%clk 00:00:30]} {[%emt 00:00:10]} Ra2 {[%clk 00:01:04]} {[%emt 00:00:59]} 69.
Rc7+ {[%clk 00:00:35]} {[%emt 00:00:05]} Kd5 {[%clk 00:01:04]} {[%emt
00:00:10]} 70. Kf4 {[%clk 00:00:35]} {[%emt 00:00:09]} Rf2+ {[%clk 00:01:03]}
{[%emt 00:00:12]} 71. Kg4 {[%clk 00:00:43]} Ra2 {[%clk 00:00:41]} {[%emt
00:00:33]} 72. Kf4 {[%clk 00:00:50]} {[%emt 00:00:03]} Rf2+ {[%clk 00:00:43]}
{[%emt 00:00:08]} 73. Kg4 {[%clk 00:01:00]} Ra2 {[%clk 00:00:37]} {[%emt
00:00:16]} 1/2-1/2